bitfinex/quotes_BTCUSD_20241002
["timestamp","ask_amount","ask_price","bid_price","bid_amount"]
[1727882818368,0.24382909,61788.0,61777.0,0.03248]
[1727882818608,0.161833,61792.0,61787.0,0.161845]
[1727882818895,0.161833,61792.0,61788.0,0.01184308]
[1727882819161,0.161828,61794.0,61788.0,0.17368608]
[1727882819383,0.323653,61795.0,61784.0,0.24382909]
[1727882819384,0.323653,61795.0,61784.0,0.27630909]
[1727882819654,0.161833,61792.0,61787.0,0.161846]
[1727882819894,0.161834,61792.0,61788.0,0.01184308]
[1727882820134,0.161836,61791.0,61788.0,0.01184308]
[1727882820380,0.161837,61791.0,61789.0,0.01183023]
[1727882820647,0.02537403,61792.0,61791.0,0.161835]
[1727882820922,0.02537403,61792.0,61791.0,0.17363953]
[1727882821585,0.02537403,61792.0,61791.0,0.27233953]
[1727882822011,0.02537403,61792.0,61791.0,0.30481953]
[1727882822245,0.24382909,61801.0,61791.0,0.30481953]
[1727882822246,0.24382909,61801.0,61797.0,0.161819]
[1727882822471,0.161814,61799.0,61798.0,0.01169471]
[1727882823081,0.323624,61800.0,61794.0,0.161826]
[1727882823082,0.161818,61798.0,61794.0,0.161826]
[1727882823331,0.161811,61801.0,61795.0,0.161823]
[1727882823604,0.323621,61801.0,61796.0,0.161822]
[1727882823818,0.161805,61803.0,61795.0,0.17354877]
[1727882824041,0.161817,61798.0,61797.0,0.01169955]
[1727882824257,0.16182,61797.0,61793.0,0.24382909]
[1727882824458,0.1,61807.0,61794.0,0.01173808]
[1727882824459,0.161824,61796.0,61794.0,0.01173808]
[1727882824677,0.161822,61797.0,61794.0,0.01173808]
[1727882824894,0.02537147,61797.0,61794.0,0.01173808]
[1727882825114,0.161823,61796.0,61794.0,0.01173808]
[1727882825345,0.18719247,61797.0,61793.0,0.161829]
[1727882825550,0.18719247,61797.0,61794.0,0.161826]
[1727882825767,0.34901147,61797.0,61794.0,0.01173757]
[1727882825974,0.161825,61795.0,61794.0,0.01173757]
[1727882826199,0.485478,61795.0,61794.0,0.001]
[1727882826886,0.70158995,61795.0,61794.0,0.001]
[1727882827102,0.161851,61785.0,61784.0,0.24382909]
[1727882827332,0.261828,61794.0,61793.0,0.24382909]
[1727882827583,0.16185,61786.0,61784.0,0.25569514]
[1727882827790,0.16185,61786.0,61782.0,0.161858]
[1727882827791,0.1,61794.0,61785.0,0.24382909]
[1727882828015,0.161852,61785.0,61781.0,0.194341]
[1727882828240,0.161852,61785.0,61783.0,0.24382909]
[1727882828468,0.1,61794.0,61786.0,0.161848]
[1727882828469,0.161839,61790.0,61786.0,0.161848]
[1727882828674,0.24382909,61789.0,61783.0,0.161854]
[1727882828887,0.1,61797.0,61775.0,0.00164]
[1727882829114,0.161857,61783.0,61779.0,0.161866]
[1727882829334,0.161859,61782.0,61781.0,0.005]
[1727882829568,0.002,61796.0,61777.0,0.03248]
[1727882829786,0.161846,61787.0,61778.0,0.161867]
[1727882830045,0.161854,61784.0,61783.0,0.001]
[1727882830296,0.161867,61779.0,61777.0,0.03248]
[1727882830553,0.001,61782.0,61781.0,0.009]
[1727882830970,0.162859,61782.0,61781.0,0.009]
[1727882831183,0.001,61782.0,61781.0,0.009]
[1727882831862,0.002,61782.0,61781.0,0.015]
[1727882832073,0.02637656,61782.0,61781.0,0.006]
[1727882833337,0.002,61782.0,61781.0,0.015]
[1727882833547,0.163859,61782.0,61781.0,0.015]
[1727882833759,0.163859,61782.0,61781.0,0.02686997]
[1727882835582,0.002,61782.0,61781.0,0.22121197]
[1727882835679,0.002,61782.0,61781.0,0.18873197]
[1727882835912,0.002,61782.0,61781.0,0.02686997]
[1727882836608,0.002,61782.0,61781.0,0.18873197]
[1727882837518,0.163859,61782.0,61781.0,0.02686997]
[1727882837982,0.163859,61782.0,61781.0,0.015]
[1727882838531,0.002,61782.0,61781.0,0.015]
[1727882839081,0.163859,61782.0,61781.0,0.015]
[1727882839305,0.002,61782.0,61781.0,0.176862]
[1727882839542,0.002,61782.0,61781.0,0.28656961]
[1727882839810,0.002,61782.0,61781.0,0.36856961]
[1727882840039,0.002,61782.0,61781.0,0.36533271]
[1727882840262,0.002,61782.0,61781.0,0.39781271]
[1727882840490,0.00282,61782.0,61781.0,0.56099942]
[1727882840959,0.72012909,61798.0,61781.0,0.39913742]
[1727882840960,0.24382909,61798.0,61781.0,0.39913742]
[1727882841187,0.24382909,61798.0,61797.0,0.25882]
[1727882841411,0.24382909,61798.0,61797.0,0.33922]
[1727882841648,0.0253711,61806.0,61797.0,0.33922]
[1727882841649,0.1871681,61806.0,61800.0,0.323624]
[1727882841871,0.1871681,61806.0,61802.0,0.161806]
[1727882842112,0.0253711,61806.0,61805.0,0.161799]
[1727882842607,0.00082,61815.0,61805.0,0.01153675]
[1727882842608,0.24464909,61815.0,61805.0,0.01153675]
[1727882842865,0.24382909,61808.0,61805.0,0.33513075]
[1727882843109,0.161779,61813.0,61809.0,0.161786]
[1727882843575,0.161779,61813.0,61810.0,0.01147255]
[1727882844047,0.56819909,61815.0,61810.0,0.01147255]
[1727882844048,0.162603,61811.0,61810.0,0.01147255]
[1727882844271,0.162603,61811.0,61808.0,0.16179]
[1727882844497,0.162603,61811.0,61806.0,0.323589]
[1727882844498,0.00082,61811.0,61810.0,0.161786]
[1727882845001,0.00082,61811.0,61810.0,0.17325855]
[1727882846487,0.00082,61811.0,61810.0,0.17425855]
[1727882846725,0.00082,61811.0,61810.0,0.33644526]
[1727882846726,0.00282,61811.0,61810.0,0.33644526]
[1727882846962,0.00282,61811.0,61810.0,0.54592526]
[1727882847205,0.00082,61815.0,61814.0,0.161775]
[1727882847433,0.00082,61815.0,61814.0,0.35744171]
[1727882847660,0.00082,61815.0,61814.0,0.36882912]
[1727882849029,0.00082,61815.0,61814.0,0.40783956]
[1727882849274,0.00082,61815.0,61814.0,0.38711172]
[1727882849520,0.00082,61815.0,61814.0,0.36882912]
[1727882849752,0.00082,61815.0,61814.0,0.20564241]
[1727882849996,0.00082,61815.0,61814.0,0.22287763]
[1727882850231,0.00082,61815.0,61814.0,0.21964241]
[1727882850463,0.00082,61815.0,61814.0,0.23264241]
[1727882850464,0.00182,61815.0,61814.0,0.23264241]
[1727882850965,0.00082,61815.0,61814.0,0.21964241]
[1727882851197,0.00082,61815.0,61814.0,0.38282912]
[1727882851454,0.00182,61815.0,61814.0,0.39082912]
[1727882851975,0.00082,61815.0,61814.0,0.36882912]
[1727882852199,0.00082,61815.0,61814.0,0.37982912]
[1727882852432,0.00082,61815.0,61814.0,0.36882912]
[1727882852660,0.00082,61815.0,61814.0,0.20564241]
[1727882852890,0.00082,61815.0,61814.0,0.21964241]
[1727882853127,0.00082,61815.0,61814.0,0.20564241]
[1727882853352,0.00182,61815.0,61814.0,0.21364241]
[1727882853620,0.00182,61815.0,61814.0,0.06586741]
[1727882853844,0.00182,61815.0,61814.0,0.21364241]
[1727882854295,0.00082,61815.0,61814.0,0.20564241]
[1727882854522,0.00082,61815.0,61814.0,0.04386741]
[1727882854779,0.00182,61815.0,61814.0,0.21764241]
[1727882855453,0.00182,61815.0,61814.0,0.23164241]
[1727882855908,0.00182,61815.0,61814.0,0.21764241]
[1727882856367,0.00182,61815.0,61814.0,0.22687764]
[1727882856590,0.00182,61815.0,61814.0,0.21764241]
[1727882856813,0.00182,61815.0,61814.0,0.20564241]
[1727882856814,0.00082,61815.0,61814.0,0.20564241]
[1727882857035,0.00082,61815.0,61814.0,0.21964241]
[1727882857466,0.00182,61815.0,61814.0,0.22764241]
[1727882857909,0.00082,61815.0,61814.0,0.22287735]
[1727882858360,0.00182,61815.0,61814.0,0.23164241]
[1727882858596,0.00182,61815.0,61814.0,0.29834241]
[1727882859274,0.00182,61815.0,61814.0,0.31557734]
[1727882859948,0.00182,61815.0,61814.0,0.29834241]
[1727882860168,0.00082,61815.0,61814.0,0.30357732]
[1727882860387,0.00082,61815.0,61814.0,0.30034241]
[1727882860617,0.00082,61815.0,61814.0,0.21964241]
[1727882861080,0.00182,61815.0,61814.0,0.23364241]
[1727882861550,0.00082,61815.0,61814.0,0.21964241]
[1727882861770,0.00182,61815.0,61814.0,0.23164241]
[1727882862245,0.00182,61815.0,61814.0,0.06986741]
[1727882862246,0.163593,61815.0,61814.0,0.06986741]
[1727882862481,0.163593,61815.0,61814.0,0.05586741]
[1727882862713,0.163593,61815.0,61814.0,0.05048]
[1727882862930,0.163593,61815.0,61814.0,0.06179867]
[1727882863155,0.163593,61815.0,61814.0,0.02931867]
[1727882863367,0.163593,61815.0,61814.0,0.018]
[1727882863593,0.162593,61815.0,61814.0,0.01731867]
[1727882864050,0.4741988,61815.0,61814.0,0.01731867]
[1727882864274,0.4741988,61815.0,61814.0,0.009]
[1727882864724,0.161812,61800.0,61793.0,0.03248]
[1727882865182,0.161812,61800.0,61799.0,0.25539278]
[1727882865419,0.161828,61794.0,61793.0,0.03248]
[1727882865644,0.002,61808.0,61793.0,0.03248]
[1727882865867,0.323563,61812.0,61792.0,0.03248]
[1727882865868,0.161826,61795.0,61792.0,0.03248]
[1727882866116,0.24382909,61806.0,61792.0,0.27630909]
[1727882866117,0.323633,61799.0,61792.0,0.27630909]
[1727882866336,0.02537054,61805.0,61792.0,0.03248]
[1727882866562,0.161819,61798.0,61793.0,0.161829]
[1727882867020,0.56748109,61795.0,61793.0,0.001]
[1727882867251,0.161828,61794.0,61793.0,0.001]
[1727882868398,0.323652,61795.0,61787.0,0.24382909]
[1727882868630,0.161843,61788.0,61787.0,0.24382909]
[1727882868856,0.323693,61787.0,61782.0,0.03248]
[1727882869119,0.323706,61785.0,61782.0,0.03248]
[1727882869345,0.323706,61785.0,61775.0,0.00164]
[1727882869346,0.161875,61776.0,61775.0,0.00164]
[1727882870334,0.0805,61781.0,61775.0,0.00164]
[1727882870595,0.0805,61781.0,61777.0,0.16187]
[1727882870596,0.161862,61781.0,61777.0,0.16187]
[1727882870827,0.323719,61782.0,61775.0,0.163517]
[1727882871057,0.323729,61780.0,61775.0,0.00164]
[1727882871293,0.323698,61786.0,61775.0,0.00164]
[1727882871294,0.161875,61776.0,61775.0,0.00164]
[1727882871749,0.162875,61776.0,61775.0,0.00664]
[1727882871970,0.161875,61776.0,61775.0,0.01353165]
[1727882872195,0.161875,61776.0,61775.0,0.00664]
[1727882872439,0.18725466,61776.0,61775.0,0.01164]
[1727882872674,0.18725466,61776.0,61775.0,0.00664]
[1727882872908,0.02537966,61776.0,61775.0,0.02353165]
[1727882873127,0.18825466,61776.0,61775.0,0.01164]
[1727882873349,0.162875,61776.0,61775.0,0.01853165]
[1727882873568,0.162875,61776.0,61775.0,0.00764]
[1727882873569,0.167875,61776.0,61775.0,0.00764]
[1727882873812,0.167875,61776.0,61775.0,0.01953165]
[1727882874038,0.38906551,61776.0,61775.0,0.00264]
[1727882874297,0.49506551,61776.0,61775.0,0.00264]
[1727882874752,0.48306551,61776.0,61775.0,0.00164]
[1727882874879,0.346775,61776.0,61775.0,0.00164]
[1727882875112,0.359775,61776.0,61775.0,0.00364]
[1727882875325,0.352775,61776.0,61775.0,0.00264]
[1727882875554,0.375775,61776.0,61775.0,0.00264]
[1727882875786,0.54596171,61776.0,61775.0,0.00364]
[1727882876228,0.54396171,61776.0,61775.0,0.00364]
[1727882876469,0.569347,61776.0,61775.0,0.00364]
[1727882876686,0.54396171,61776.0,61775.0,0.00364]
[1727882876947,0.380775,61776.0,61775.0,0.00364]
[1727882877370,0.357775,61776.0,61775.0,0.00364]
[1727882879570,0.38315783,61776.0,61775.0,0.00364]
[1727882879998,0.03838283,61776.0,61775.0,0.00364]
[1727882880216,0.20025783,61776.0,61775.0,0.00364]
[1727882880681,0.03838283,61776.0,61775.0,0.00364]
[1727882880931,0.03838283,61776.0,61775.0,0.01564378]
[1727882881150,0.03838283,61776.0,61775.0,0.17752078]
[1727882881640,0.03838283,61776.0,61775.0,0.21000078]
[1727882882111,0.03338283,61776.0,61775.0,0.20900078]
[1727882882352,0.02538283,61776.0,61775.0,0.20800078]
[1727882882591,0.005,61776.0,61775.0,0.20800078]
[1727882883059,0.006,61776.0,61775.0,0.21800078]
[1727882883811,0.002,61776.0,61775.0,0.05612378]
[1727882884031,0.002,61776.0,61775.0,0.04412]
[1727882884263,0.003,61776.0,61775.0,0.05312]
[1727882884499,0.162875,61776.0,61775.0,0.04312]
[1727882884734,0.163875,61776.0,61775.0,0.02364]
[1727882884957,0.161875,61776.0,61775.0,0.00164]
[1727882885191,0.161875,61776.0,61775.0,0.00764]
[1727882885448,0.001,61776.0,61775.0,0.01664]
[1727882885686,0.161872,61777.0,61775.0,0.00164]
[1727882885892,0.161873,61777.0,61775.0,0.00264]
[1727882886102,0.60505521,61778.0,61775.0,0.00264]
[1727882886305,0.161875,61776.0,61775.0,0.00264]
[1727882886522,0.02537945,61777.0,61776.0,0.161875]
[1727882886730,0.02537945,61777.0,61775.0,0.00264]
[1727882886950,0.161875,61776.0,61775.0,0.00264]
[1727882887176,0.002,61776.0,61775.0,0.00264]
[1727882887388,0.163875,61776.0,61775.0,0.00264]
[1727882887605,0.161875,61776.0,61775.0,0.00164]
[1727882888462,0.161875,61776.0,61775.0,0.00264]
[1727882888689,0.163875,61776.0,61775.0,0.00264]
[1727882888901,0.163875,61776.0,61775.0,0.164517]
[1727882888902,0.002,61776.0,61775.0,0.164517]
[1727882889130,0.002,61776.0,61775.0,0.36342096]
[1727882889365,0.002,61776.0,61775.0,0.45508371]
[1727882890049,0.24382909,61790.0,61789.0,0.194321]
[1727882890513,4e-05,61800.0,61796.0,0.161822]
[1727882891012,4e-05,61800.0,61799.0,0.161814]
[1727882892100,0.02740844,61800.0,61799.0,0.161814]
[1727882893178,0.00204,61800.0,61799.0,0.194294]
[1727882893424,0.00204,61800.0,61799.0,0.35748071]
[1727882893679,0.00204,61800.0,61799.0,0.35848071]
[1727882893891,4e-05,61800.0,61799.0,0.35848071]
[1727882894096,0.00104,61800.0,61799.0,0.194294]
[1727882894317,0.00104,61800.0,61799.0,0.196294]
[1727882894729,4e-05,61800.0,61799.0,0.194294]
[1727882894963,0.00104,61800.0,61799.0,0.220294]
[1727882895175,0.00104,61800.0,61799.0,0.22195694]
[1727882895393,0.00104,61800.0,61799.0,0.22621301]
[1727882895612,0.00104,61800.0,61799.0,0.22778587]
[1727882896046,0.00104,61800.0,61799.0,0.39097258]
[1727882896260,0.00104,61800.0,61799.0,0.38773678]
[1727882897323,0.00104,61800.0,61799.0,0.22455007]
[1727882897758,0.00104,61800.0,61799.0,0.220294]
[1727882900194,0.00104,61800.0,61799.0,0.05848]
[1727882900415,0.00104,61800.0,61799.0,0.220294]
[1727882900853,0.00104,61800.0,61799.0,0.026]
[1727882901098,0.162852,61800.0,61799.0,0.026]
[1727882901955,0.18822195,61800.0,61799.0,0.014]
[1727882902393,0.18822195,61800.0,61795.0,0.03248]
[1727882902394,0.161822,61796.0,61795.0,0.03248]
[1727882903072,0.161826,61795.0,61792.0,0.161831]
[1727882903288,0.60495721,61797.0,61789.0,0.323681]
[1727882903289,0.323646,61796.0,61789.0,0.323681]
[1727882903501,0.161828,61794.0,61791.0,0.161834]
[1727882903714,0.28131421,61797.0,61793.0,0.16183]
[1727882903937,0.161823,61796.0,61793.0,0.16183]
[1727882904159,0.44313421,61797.0,61793.0,0.16183]
[1727882904363,0.44313421,61797.0,61790.0,0.323675]
[1727882904364,0.28131421,61797.0,61790.0,0.323675]
[1727882904588,0.161823,61796.0,61792.0,0.161831]
[1727882904814,0.28131421,61797.0,61793.0,0.16183]
[1727882905044,0.161822,61796.0,61793.0,0.161829]
[1727882905268,0.28131421,61797.0,61790.0,0.323676]
[1727882905490,0.28131421,61797.0,61793.0,0.002]
[1727882905694,0.161823,61796.0,61793.0,0.163829]
[1727882905913,0.28131421,61797.0,61793.0,0.002]
[1727882906169,0.02637056,61796.0,61795.0,0.006]
[1727882906451,0.18819556,61796.0,61793.0,0.002]
[1727882906868,0.02637056,61796.0,61795.0,0.161825]
[1727882907071,4e-05,61800.0,61799.0,0.161814]
[1727882908092,4e-05,61800.0,61796.0,0.323644]
[1727882908208,4e-05,61800.0,61799.0,0.161814]
[1727882908877,4e-05,61800.0,61799.0,0.16505002]
[1727882909105,0.00104,61800.0,61799.0,0.16505002]
[1727882909352,0.00104,61800.0,61799.0,0.161814]
[1727882909791,0.00104,61800.0,61799.0,0.163814]
[1727882910266,0.00104,61800.0,61799.0,0.002]
[1727882910710,4e-05,61800.0,61799.0,0.002]
[1727882910932,4e-05,61800.0,61799.0,0.164814]
[1727882911167,4e-05,61800.0,61799.0,0.255314]
[1727882911360,4e-05,61800.0,61799.0,0.164814]
[1727882911580,4e-05,61800.0,61799.0,0.163814]
[1727882911798,4e-05,61800.0,61799.0,0.16504991]
[1727882912018,0.00104,61800.0,61799.0,0.16504991]
[1727882912238,0.00104,61800.0,61799.0,0.16904991]
[1727882912455,0.00104,61800.0,61799.0,0.24814991]
[1727882912685,0.00104,61800.0,61799.0,0.50643662]
[1727882913118,0.00104,61800.0,61799.0,0.49920071]
[1727882913355,0.00204,61800.0,61799.0,0.50720071]
[1727882913590,0.00104,61800.0,61799.0,0.50120071]
[1727882913820,0.00104,61800.0,61799.0,0.60620071]
[1727882914058,0.24464909,61814.0,61813.0,0.161778]
[1727882914508,0.00082,61814.0,61813.0,0.194258]
[1727882914729,0.00082,61814.0,61813.0,0.19749313]
[1727882915408,0.00182,61814.0,61813.0,0.20549313]
[1727882916327,0.00282,61814.0,61813.0,0.21749313]
[1727882917250,0.00282,61814.0,61813.0,0.214258]
[1727882922154,0.00282,61814.0,61813.0,0.181778]
[1727882922430,0.00282,61814.0,61813.0,0.02]
[1727882922939,0.163595,61814.0,61813.0,0.008]
[1727882923985,0.164595,61814.0,61813.0,0.016]
[1727882924201,0.164595,61814.0,61806.0,0.24382909]
[1727882924202,0.00082,61814.0,61809.0,0.161787]
[1727882924457,0.161778,61813.0,61809.0,0.161787]
[1727882925170,0.161787,61810.0,61805.0,0.356074]
[1727882925408,0.161787,61810.0,61801.0,0.24382909]
[1727882925409,0.0781,61802.0,61801.0,0.24382909]
[1727882925888,0.0781,61802.0,61799.0,0.161813]
[1727882926115,0.0781,61802.0,61800.0,0.161811]
[1727882926343,0.10346806,61802.0,61801.0,0.161809]
[1727882926605,0.02536806,61802.0,61801.0,0.194289]
[1727882926839,0.24382909,61808.0,61807.0,0.161793]
[1727882927353,0.003,61813.0,61810.0,0.323569]
[1727882927573,0.00082,61814.0,61811.0,0.161782]
[1727882927797,0.00082,61814.0,61812.0,0.161779]
[1727882928475,0.00082,61814.0,61811.0,0.161782]
[1727882928703,0.00082,61814.0,61810.0,0.323571]
[1727882928923,0.162596,61814.0,61811.0,0.161783]
[1727882929377,0.166596,61814.0,61811.0,0.161783]
[1727882929826,0.004,61813.0,61811.0,0.161783]
[1727882930279,0.18796066,61814.0,61811.0,0.161783]
[1727882930529,0.18796066,61814.0,61808.0,0.32358]
[1727882930757,0.323567,61811.0,61796.0,0.0988]
[1727882930987,0.323563,61812.0,61806.0,0.24382909]
[1727882931211,0.323563,61812.0,61806.0,0.161795]
[1727882931212,0.161788,61810.0,61806.0,0.161795]
[1727882931442,0.03118466,61814.0,61802.0,0.323612]
[1727882931443,0.34973666,61814.0,61802.0,0.323612]
[1727882931681,0.161781,61812.0,61808.0,0.16179]
[1727882931915,0.001,61813.0,61801.0,0.323616]
[1727882932188,0.001,61813.0,61812.0,0.16178]
[1727882932944,0.001,61813.0,61812.0,0.19426]
[1727882933399,0.00082,61814.0,61812.0,0.19926]
[1727882933626,0.00082,61814.0,61813.0,0.194258]
[1727882933850,0.00582,61814.0,61813.0,0.194258]
[1727882934311,0.00082,61814.0,61813.0,0.194258]
[1727882934790,0.00182,61814.0,61813.0,0.194258]
[1727882935240,0.00082,61814.0,61813.0,0.161778]
[1727882935465,0.00182,61814.0,61813.0,0.201258]
[1727882935688,0.00282,61814.0,61813.0,0.177778]
[1727882938399,0.00282,61814.0,61813.0,0.210258]
[1727882939221,0.00282,61814.0,61813.0,0.177778]
[1727882940132,0.164595,61814.0,61813.0,0.016]
[1727882940360,0.00282,61814.0,61813.0,0.016]
[1727882940585,0.02818285,61814.0,61813.0,0.177778]
[1727882940803,0.00282,61814.0,61813.0,0.177778]
[1727882941451,0.00282,61814.0,61813.0,0.210258]
[1727882942630,0.00282,61814.0,61813.0,0.016]
[1727882943071,0.00282,61814.0,61813.0,0.177778]
[1727882943542,0.02818262,61814.0,61813.0,0.177778]
[1727882943761,0.00282,61814.0,61813.0,0.177778]
[1727882944903,0.00282,61814.0,61813.0,0.016]
[1727882945124,0.00282,61814.0,61813.0,0.210258]
[1727882949011,0.00282,61814.0,61813.0,0.83513671]
[1727882949301,0.000819,61827.0,61814.0,0.15518]
[1727882949519,0.000819,61827.0,61826.0,0.65238084]
[1727882949757,0.000819,61827.0,61826.0,0.75238084]
[1727882950028,0.000819,61827.0,61826.0,0.82840383]
[1727882950255,0.000819,61827.0,61826.0,0.75438084]
[1727882950707,0.000819,61827.0,61826.0,0.75238084]
[1727882950927,0.000819,61827.0,61826.0,0.8003706]
[1727882951150,0.000819,61827.0,61826.0,0.75238084]
[1727882951381,0.001819,61827.0,61826.0,0.76638084]
[1727882951823,0.000819,61827.0,61826.0,0.75238084]
[1727882952524,0.000819,61827.0,61826.0,0.93374677]
[1727882952755,0.000819,61827.0,61826.0,0.42463071]
[1727882952968,0.000819,61827.0,61826.0,0.43863071]
[1727882953191,0.000819,61827.0,61826.0,0.014]
[1727882953414,0.000819,61827.0,61826.0,0.028]
[1727882954118,0.000819,61827.0,61826.0,0.014]
[1727882954835,0.000819,61827.0,61826.0,0.001]
[1727882955096,0.003819,61827.0,61821.0,0.27630909]
[1727882955311,0.003819,61827.0,61818.0,0.420325]
[1727882955312,0.004819,61827.0,61822.0,0.161753]
[1727882955771,0.003819,61827.0,61822.0,0.161753]
[1727882955992,0.006819,61827.0,61824.0,0.161748]
[1727882956209,0.003819,61827.0,61822.0,0.161753]
[1727882956464,0.161752,61823.0,61815.0,0.03248]
[1727882956682,0.161752,61823.0,61815.0,0.27630909]
[1727882956914,0.34966066,61827.0,61815.0,0.03248]
[1727882956915,0.24382909,61825.0,61815.0,0.03248]
[1727882957143,0.161763,61819.0,61815.0,0.03248]
[1727882957397,0.323516,61821.0,61815.0,0.03248]
[1727882957398,0.32352,61820.0,61815.0,0.03248]
[1727882957630,0.323505,61823.0,61815.0,0.03248]
[1727882957868,0.02536129,61819.0,61815.0,0.03248]
[1727882958108,0.02536129,61819.0,61801.0,1.108518]
[1727882958109,0.02536129,61819.0,61808.0,0.03248]
[1727882958330,0.323519,61820.0,61815.0,0.009]
[1727882958331,0.16177,61816.0,61815.0,0.009]
[1727882958557,0.16177,61816.0,61815.0,0.003]
[1727882959717,0.161791,61808.0,61807.0,0.24382909]
[1727882959962,0.02536523,61816.0,61807.0,0.24382909]
[1727882960202,0.51067723,61816.0,61815.0,0.002]
[1727882960667,0.161776,61814.0,61806.0,0.24382909]
[1727882960886,0.161776,61814.0,61807.0,0.161793]
[1727882961114,0.161778,61813.0,61806.0,0.24382909]
[1727882961334,0.323549,61815.0,61806.0,0.24382909]
[1727882961335,0.161776,61814.0,61806.0,0.24382909]
[1727882961606,0.02536523,61816.0,61810.0,0.161784]
[1727882961816,0.03036523,61816.0,61808.0,0.03248]
[1727882962039,0.03036523,61816.0,61814.0,0.161774]
[1727882962040,0.02536523,61816.0,61814.0,0.161774]
[1727882962541,0.02536523,61816.0,61815.0,0.161773]
[1727882962766,0.03036523,61816.0,61815.0,0.162773]
[1727882962977,0.03436523,61816.0,61815.0,0.162773]
[1727882963203,0.004,61816.0,61815.0,0.161773]
[1727882963432,0.004,61816.0,61812.0,0.03248]
[1727882963649,0.004,61816.0,61815.0,0.03248]
[1727882963868,0.004,61816.0,61815.0,0.194253]
[1727882964362,0.004,61816.0,61815.0,0.03248]
[1727882964576,0.004,61816.0,61815.0,0.194253]
[1727882964798,0.323502,61824.0,61815.0,0.194253]
[1727882964799,0.161753,61823.0,61815.0,0.194253]
[1727882965018,0.161753,61823.0,61815.0,0.03548]
[1727882965019,0.00082,61816.0,61815.0,0.03548]
[1727882965525,0.00082,61816.0,61815.0,0.197253]
[1727882965765,0.00082,61816.0,61815.0,0.202253]
[1727882966509,0.00082,61816.0,61815.0,0.199253]
[1727882967554,0.00082,61816.0,61815.0,0.72389655]
[1727882968320,0.00082,61816.0,61815.0,0.82389655]
[1727882969064,0.00082,61816.0,61815.0,0.81889655]
[1727882969298,0.00082,61816.0,61815.0,0.82989655]
[1727882969299,0.00182,61816.0,61815.0,0.82989655]
[1727882969510,0.00082,61816.0,61815.0,0.82006128]
[1727882969745,0.00082,61816.0,61815.0,0.895764]
[1727882969966,0.000819,61827.0,61826.0,0.286724]
[1727882970205,0.000819,61827.0,61826.0,0.28995825]
[1727882970680,0.000819,61827.0,61826.0,0.46855825]
[1727882970907,0.000819,61827.0,61826.0,0.465324]
[1727882971138,0.000819,61827.0,61826.0,0.62851071]
[1727882971582,0.000819,61827.0,61826.0,0.44991071]
[1727882971807,0.000819,61827.0,61826.0,0.194224]
[1727882972016,0.000819,61827.0,61826.0,0.208224]
[1727882972445,0.000819,61827.0,61826.0,0.194224]
[1727882972663,0.000819,61827.0,61826.0,0.208224]
[1727882972879,0.000819,61827.0,61826.0,0.220224]
[1727882973536,0.000819,61827.0,61826.0,0.208224]
[1727882973776,0.000819,61827.0,61826.0,0.220224]
[1727882974918,0.000819,61827.0,61826.0,0.66417847]
[1727882975133,0.000819,61827.0,61826.0,0.86337847]
[1727882975579,0.000819,61827.0,61826.0,0.91127773]
[1727882976518,0.000819,61827.0,61826.0,0.91124556]
[1727882977006,0.000819,61827.0,61826.0,1.06467699]
[1727882977233,0.000819,61827.0,61826.0,0.96887847]
[1727882977894,0.000819,61827.0,61826.0,1.07662662]
[1727882978116,0.000819,61827.0,61826.0,1.06262662]
[1727882978333,0.000819,61827.0,61826.0,0.95687847]
[1727882978525,0.000819,61827.0,61826.0,0.97087847]
[1727882979003,0.000819,61827.0,61826.0,0.95687847]
[1727882979293,0.161637,61867.0,61843.0,0.194179]
[1727882979294,0.24382909,61848.0,61843.0,0.194179]
[1727882979480,0.24382909,61848.0,61844.0,0.0706]
[1727882979707,0.00082,61852.0,61851.0,0.294158]
[1727882979936,0.00082,61852.0,61851.0,0.57815872]
[1727882980178,0.00082,61852.0,61851.0,0.57492576]
[1727882980404,0.000819,61862.0,61858.0,0.59790776]
[1727882980699,0.000819,61862.0,61858.0,0.74009447]
[1727882980934,0.001,61882.0,61875.0,0.194096]
[1727882982103,0.001,61882.0,61875.0,0.19732197]
[1727882982544,0.24482909,61882.0,61875.0,0.194096]
[1727882983000,0.001,61882.0,61875.0,0.194096]
[1727882983262,0.001,61882.0,61875.0,0.208096]
[1727882983487,0.001,61882.0,61875.0,0.194096]
[1727882983928,0.001,61882.0,61875.0,0.206096]
[1727882984387,0.001,61882.0,61875.0,0.194096]
[1727882984837,0.001,61882.0,61875.0,0.206096]
[1727882985309,0.001,61882.0,61875.0,0.220096]
[1727882985529,0.001,61882.0,61875.0,0.206096]
[1727882985987,0.001,61882.0,61875.0,0.220096]
[1727882986721,0.0803,61881.0,61875.0,0.220096]
[1727882987191,0.0803,61881.0,61875.0,0.208096]
[1727882987964,0.0803,61881.0,61875.0,0.220096]
[1727882988416,0.0803,61881.0,61875.0,0.026]
[1727882988633,0.403505,61881.0,61875.0,0.026]
[1727882989109,0.162432,61876.0,61875.0,0.026]
[1727882989336,0.000819,61876.0,61875.0,0.012]
[1727882989835,0.000819,61876.0,61873.0,0.03248]
[1727882990058,0.000819,61876.0,61875.0,0.007]
[1727882990277,0.000819,61876.0,61875.0,0.016]
[1727882990492,0.02615832,61876.0,61875.0,0.007]
[1727882990716,0.02615832,61876.0,61875.0,0.161616]
[1727882990928,0.02615832,61876.0,61875.0,0.002]
[1727882991576,0.02615832,61876.0,61875.0,0.163616]
[1727882991832,0.02615832,61876.0,61875.0,0.166616]
[1727882993218,0.000819,61876.0,61875.0,0.005]
[1727882994543,0.000819,61876.0,61875.0,0.166616]
[1727882994769,0.000819,61876.0,61875.0,0.005]